lending/lending_fUSD_20250218
["ID","MTS","AMOUNT","RATE_DAILY","PERIOD"]
[353491674,1739880658639,-500.0,0.00014438,2]
[353491675,1739880658650,-500.0,0.00014438,2]
[353491676,1739880658659,-500.0,0.00014438,2]
[353491677,1739880658670,-500.0,0.00014438,2]
[353491678,1739880658681,-911.47,0.00014438,2]
[353491679,1739880658691,-500.0,0.00014438,2]
[353491680,1739880658701,-500.0,0.00014438,2]
[353491681,1739880658710,-500.0,0.00014438,2]
[353491682,1739880658722,-1000.58,0.00014438,2]
[353491683,1739880658733,-500.0,0.00014438,2]
[353491684,1739880658744,-500.0,0.00014438,2]
[353491685,1739880658755,-500.0,0.00014438,2]
[353491686,1739880658765,-614.2,0.00014438,2]
[353491687,1739880658775,-555.55,0.00014438,2]
[353491688,1739880658785,-500.0,0.00014438,2]
[353491689,1739880658795,-500.0,0.00014438,2]
[353491690,1739880658805,-500.0,0.00014438,2]
[353491691,1739880658815,-500.0,0.00014438,2]
[353491692,1739880658825,-500.0,0.00014438,2]
[353491693,1739880658835,-500.0,0.00014438,2]
[353491694,1739880658885,-500.0,0.00014438,2]
[353491695,1739880658896,-500.0,0.00014438,2]
[353491696,1739880658906,-1678.1,0.00014438,2]
[353491697,1739880658916,-500.0,0.00014438,2]
[353491698,1739880658926,-500.0,0.00014438,2]
[353491699,1739880658936,-500.0,0.00014438,2]
[353491700,1739880658947,-500.0,0.00014438,2]
[353491701,1739880658956,-500.0,0.00014438,2]
[353491702,1739880658967,-500.0,0.00014438,2]
[353491703,1739880658978,-541.89280287,0.00014438,2]
[353491704,1739880658987,-500.0,0.00014438,2]
[353491705,1739880658997,-500.0,0.00014438,2]
[353491706,1739880659006,-500.0,0.00014438,2]
[353491707,1739880659015,-500.0,0.00014438,2]
[353491708,1739880659025,-500.0,0.00014473,2]
[353491709,1739880659035,-500.0,0.00014475,2]
[353491710,1739880659045,-2600752.33244496,0.000145,2]
[353491711,1739880659054,-500.0,0.0001452,2]
[353491712,1739880659063,-500.0,0.0001452,2]
[353491713,1739880659072,-503.8300065,0.0001452,2]
[353491714,1739880659082,-390.134654,0.0001452,2]
[353491715,1739880659092,-337.877351,0.0001452,2]
[353491716,1739880659102,-500.0,0.0001452,2]
[353491717,1739880659111,-500.0,0.0001452,2]
[353491718,1739880659121,-500.0,0.0001452,2]
[353491719,1739880659131,-500.0,0.0001452,2]
[353491720,1739880659140,-500.0,0.0001452,2]
[353491721,1739880659150,-500.0,0.0001452,2]
[353491722,1739880659159,-500.0,0.0001452,2]
[353491723,1739880659169,-500.0,0.0001452,2]
[353491724,1739880659179,-500.0,0.0001452,2]
[353491725,1739880659189,-500.0,0.0001452,2]
[353491726,1739880659198,-500.0,0.0001452,2]
[353491727,1739880659208,-500.0,0.0001452,2]
[353491728,1739880659219,-500.0,0.0001452,2]
[353491729,1739880659229,-820.59,0.0001452,2]
[353491730,1739880659239,-287.0282568,0.0001452,2]
[353491731,1739880659250,-236.87918647,0.0001452,2]
[353491732,1739880659259,-500.0,0.0001452,2]
[353491733,1739880659269,-445.72270501,0.0001452,2]
[353491734,1739880659279,-500.0,0.0001452,2]
[353491735,1739880659289,-500.0,0.0001452,2]
[353491736,1739880659299,-598.34,0.0001452,2]
[353491737,1739880659309,-500.0,0.0001452,2]
[353491738,1739880659319,-500.0,0.0001452,2]
[353491739,1739880659328,-500.0,0.0001452,2]
[353491740,1739880659337,-778.2,0.0001452,2]
[353491741,1739880659348,-500.0,0.0001452,2]
[353491742,1739880659357,-500.0,0.0001452,2]
[353491743,1739880659367,-557.95,0.0001452,2]
[353491744,1739880659377,-777.52,0.0001452,2]
[353491745,1739880659387,-535.95,0.0001452,2]
[353491746,1739880659397,-500.0,0.0001452,2]
[353491747,1739880659407,-500.0,0.0001452,2]
[353491748,1739880659418,-578.22131319,0.0001452,2]
[353491749,1739880659427,-426.50053279,0.0001452,2]
[353491750,1739880659437,-500.0,0.0001452,2]
[353491751,1739880659447,-500.0,0.0001452,2]
[353491752,1739880659457,-236.63124562,0.0001452,2]
[353491753,1739880659467,-500.0,0.0001452,2]
[353491754,1739880659477,-500.0,0.0001452,2]
[353491755,1739880659487,-500.0,0.0001452,2]
[353491756,1739880659496,-500.0,0.0001452,2]
[353491757,1739880659506,-564.61,0.0001452,2]
[353491758,1739880659515,-597.66023164,0.0001452,2]
[353491759,1739880659525,-500.0,0.0001452,2]
[353491760,1739880659535,-501.08,0.0001452,2]
[353491761,1739880659544,-500.0,0.0001452,2]
[353491762,1739880659554,-747.63,0.0001452,2]
[353491763,1739880659563,-500.0,0.0001452,2]
[353491764,1739880659572,-554.01,0.0001452,2]
[353491765,1739880659583,-500.0,0.0001452,2]
[353491766,1739880659592,-500.0,0.0001452,2]
[353491767,1739880659602,-500.0,0.0001452,2]
[353491768,1739880659611,-500.0,0.0001452,2]
[353491769,1739880659621,-500.0,0.0001452,2]
[353491770,1739880659631,-227.71170733,0.0001452,2]
[353491771,1739880659640,-500.0,0.0001452,2]
[353491772,1739880659650,-500.0,0.0001452,2]
[353491773,1739880659660,-257.10935346,0.0001452,2]
[353491774,1739880659672,-911.47,0.0001452,2]
[353491775,1739880659683,-500.0,0.0001452,2]
[353491776,1739880659693,-508.34035497,0.0001452,2]
[353491777,1739880659703,-500.0,0.0001452,2]
[353491778,1739880659713,-1000.58,0.0001452,2]
[353491779,1739880659724,-500.0,0.0001452,2]
[353491780,1739880659735,-300.32952698,0.0001452,2]
[353491781,1739880659746,-500.0,0.0001452,2]
[353491782,1739880659758,-614.2,0.0001452,2]
[353491783,1739880659770,-555.55,0.0001452,2]
[353491784,1739880659780,-500.0,0.0001452,2]
[353491785,1739880659790,-500.0,0.0001452,2]
[353491786,1739880659800,-500.0,0.0001452,2]
[353491787,1739880659810,-500.0,0.0001452,2]
[353491788,1739880659820,-500.0,0.0001452,2]
[353491789,1739880659830,-500.0,0.0001452,2]
[353491790,1739880659841,-500.0,0.0001452,2]
[353491791,1739880659852,-500.0,0.0001452,2]
[353491792,1739880659862,-1678.1,0.0001452,2]
[353491793,1739880659872,-500.0,0.0001452,2]
[353491794,1739880659883,-500.0,0.0001452,2]
[353491795,1739880659895,-500.0,0.0001452,2]
[353491796,1739880659905,-500.0,0.0001452,2]
[353491797,1739880659915,-500.0,0.0001452,2]
[353491798,1739880659926,-500.0,0.0001452,2]
[353491799,1739880659936,-500.0,0.0001452,2]
[353491800,1739880659947,-500.0,0.0001452,2]
[353491801,1739880659957,-500.0,0.0001452,2]
[353491802,1739880659967,-181.9132088,0.00014552,2]
[353491803,1739880659978,-540.82,0.00014582,2]
[353491804,1739880659988,-1868.0,0.00014584,2]
[353491805,1739880659999,-500.0,0.00014602,2]
[353491806,1739880660010,-500.0,0.00014602,2]
[353491807,1739880660020,-390.134654,0.00014602,2]
[353491808,1739880660030,-337.877351,0.00014602,2]
[353491809,1739880660041,-500.0,0.00014602,2]
[353491810,1739880660051,-500.0,0.00014602,2]
[353491811,1739880660062,-416.00723602,0.00014602,2]
[353491812,1739880660073,-500.0,0.00014602,2]
[353491813,1739880660083,-498.96706991,0.00014602,2]
[353491814,1739880660094,-500.0,0.00014602,2]
[353491815,1739880660104,-565.17,0.00014602,2]
[353491816,1739880660115,-500.0,0.00014602,2]
[353491817,1739880660125,-500.0,0.00014602,2]
[353491818,1739880660135,-500.0,0.00014602,2]
[353491819,1739880660146,-500.0,0.00014602,2]
[353491820,1739880660156,-500.0,0.00014602,2]
[353491821,1739880660167,-500.0,0.00014602,2]
[353491822,1739880660177,-820.59,0.00014602,2]
[353491823,1739880660187,-157.46709356,0.00014602,2]
[353491824,1739880660198,-285.98219457,0.00014602,2]
[353491825,1739880660209,-500.0,0.00014602,2]
[353491826,1739880660218,-598.34,0.00014602,2]
[353491827,1739880660229,-500.0,0.00014602,2]
[353491828,1739880660239,-500.0,0.00014602,2]
[353491829,1739880660250,-500.0,0.00014602,2]
[353491830,1739880660260,-778.2,0.00014602,2]
[353491831,1739880660271,-500.0,0.00014602,2]
[353491832,1739880660282,-500.0,0.00014602,2]
[353491833,1739880660292,-557.95,0.00014602,2]
[353491834,1739880660303,-777.52,0.00014602,2]
[353491835,1739880660313,-535.95,0.00014602,2]
[353491836,1739880660324,-500.0,0.00014602,2]
[353491837,1739880660334,-500.0,0.00014602,2]
[353491838,1739880660344,-500.0,0.00014602,2]
[353491839,1739880660354,-500.0,0.00014602,2]
[353491840,1739880660364,-500.0,0.00014602,2]
[353491841,1739880660374,-500.0,0.00014602,2]
[353491842,1739880660384,-500.0,0.00014602,2]
[353491843,1739880660394,-500.0,0.00014602,2]
[353491844,1739880660405,-564.61,0.00014602,2]
[353491845,1739880660415,-500.0,0.00014602,2]
[353491846,1739880660425,-501.08,0.00014602,2]
[353491847,1739880660436,-500.0,0.00014602,2]
[353491848,1739880660447,-747.63,0.00014602,2]
[353491849,1739880660457,-500.0,0.00014602,2]
[353491850,1739880660468,-554.01,0.00014602,2]
[353491851,1739880660479,-500.0,0.00014602,2]
[353491852,1739880660490,-500.0,0.00014602,2]
[353491853,1739880660501,-500.0,0.00014602,2]
[353491854,1739880660511,-500.0,0.00014602,2]
[353491855,1739880660521,-500.0,0.00014602,2]
[353491856,1739880660532,-500.0,0.00014602,2]
[353491857,1739880660542,-500.0,0.00014602,2]
[353491858,1739880660552,-911.47,0.00014602,2]
[353491859,1739880660562,-500.0,0.00014602,2]
[353491860,1739880660573,-500.0,0.00014602,2]
[353491861,1739880660583,-1000.58,0.00014602,2]
[353491862,1739880660593,-500.0,0.00014602,2]
[353491863,1739880660604,-500.0,0.00014602,2]
[353491864,1739880660614,-614.2,0.00014602,2]
[353491865,1739880660624,-555.55,0.00014602,2]
[353491866,1739880660635,-500.0,0.00014602,2]
[353491867,1739880660645,-500.0,0.00014602,2]
[353491868,1739880660655,-394.77625797,0.00014602,2]
[353491869,1739880660665,-500.0,0.00014602,2]
[353491870,1739880660680,-500.0,0.00014602,2]
[353491871,1739880660691,-500.0,0.00014602,2]
[353491872,1739880660701,-631.63177258,0.00014602,2]
[353491873,1739880660711,-611.64904684,0.00014602,2]
[353491874,1739880660723,-1678.1,0.00014602,2]
[353491875,1739880660734,-500.0,0.00014602,2]
[353491876,1739880660744,-500.0,0.00014602,2]
[353491877,1739880660756,-500.0,0.00014602,2]
[353491878,1739880660767,-500.0,0.00014602,2]
[353491879,1739880660778,-500.0,0.00014602,2]
[353491880,1739880660790,-500.0,0.00014602,2]
[353491881,1739880660801,-500.0,0.00014602,2]
[353491882,1739880660814,-500.0,0.00014602,2]
[353491883,1739880660827,-533.31264442,0.00014602,2]
[353491884,1739880660839,-500.0,0.00014612,2]
[353491885,1739880660850,-500.0,0.00014684,2]
[353491886,1739880660859,-551.1684547,0.00014684,2]
[353491887,1739880660870,-390.134654,0.00014684,2]
[353491888,1739880660883,-337.877351,0.00014684,2]
[353491889,1739880660894,-500.0,0.00014684,2]
[353491890,1739880660906,-500.0,0.00014684,2]
[353491891,1739880660919,-500.0,0.00014684,2]
[353491892,1739880660931,-500.0,0.00014684,2]
[353491893,1739880660943,-564.79588398,0.00014684,2]
[353491894,1739880660955,-358.40133605,0.00014684,2]
[353491895,1739880660966,-500.0,0.00014684,2]
[353491896,1739880660977,-267.36530806,0.00014684,2]
[353491897,1739880660987,-500.0,0.00014684,2]
[353491898,1739880660998,-500.0,0.00014684,2]
[353491899,1739880661011,-820.59,0.00014684,2]
[353491900,1739880661023,-500.0,0.00014684,2]
[353491901,1739880661035,-598.34,0.00014684,2]
[353491902,1739880661046,-500.0,0.00014684,2]
[353491903,1739880661058,-500.0,0.00014684,2]
[353491904,1739880661070,-500.0,0.00014684,2]
[353491905,1739880661081,-778.2,0.00014684,2]
[353491906,1739880661092,-179.30655947,0.00014684,2]
[353491907,1739880661104,-500.0,0.00014684,2]
[353491908,1739880661116,-557.95,0.00014684,2]
[353491909,1739880661127,-777.52,0.00014684,2]
[353491910,1739880661139,-535.95,0.00014684,2]
[353491911,1739880661150,-554.32246481,0.00014684,2]
[353491912,1739880661163,-500.0,0.00014684,2]
[353491913,1739880661174,-514.30631698,0.00014684,2]
[353491914,1739880661186,-500.0,0.00014684,2]
[353491915,1739880661197,-189.37380482,0.00014684,2]
[353491916,1739880661207,-500.0,0.00014684,2]
[353491917,1739880661220,-500.0,0.00014684,2]
[353491918,1739880661231,-500.0,0.00014684,2]
[353491919,1739880661243,-564.61,0.00014684,2]
[353491920,1739880661255,-500.0,0.00014684,2]
[353491921,1739880661266,-501.08,0.00014684,2]
[353491922,1739880661278,-500.0,0.00014684,2]
[353491923,1739880661290,-747.63,0.00014684,2]
[353491924,1739880661300,-582.57866142,0.00014684,2]
[353491925,1739880661311,-554.01,0.00014684,2]
[353491926,1739880661323,-500.0,0.00014684,2]
[353491927,1739880661332,-500.0,0.00014684,2]
[353491928,1739880661342,-500.0,0.00014684,2]
[353491929,1739880661353,-500.0,0.00014684,2]
[353491930,1739880661362,-559.87852818,0.00014684,2]
[353491931,1739880661374,-500.0,0.00014684,2]
[353491932,1739880661387,-500.0,0.00014684,2]
[353491933,1739880661399,-911.47,0.00014684,2]
[353491934,1739880661408,-500.0,0.00014684,2]
[353491935,1739880661418,-500.0,0.00014684,2]
[353491936,1739880661427,-1000.58,0.00014684,2]
[353491937,1739880661437,-500.0,0.00014684,2]
[353491938,1739880661448,-500.0,0.00014684,2]
[353491939,1739880661460,-614.2,0.00014684,2]
[353491940,1739880661471,-555.55,0.00014684,2]
[353491941,1739880661482,-500.0,0.00014684,2]
[353491942,1739880661493,-500.0,0.00014684,2]
[353491943,1739880661504,-500.0,0.00014684,2]
[353491944,1739880661515,-500.0,0.00014684,2]
[353491945,1739880661525,-500.0,0.00014684,2]
[353491946,1739880661535,-1678.1,0.00014684,2]
[353491947,1739880661545,-500.0,0.00014684,2]
[353491948,1739880661555,-500.0,0.00014684,2]
[353491949,1739880661566,-500.0,0.00014684,2]
[353491950,1739880661577,-500.0,0.00014684,2]
[353491951,1739880661587,-500.0,0.00014684,2]
[353491952,1739880661598,-500.0,0.00014684,2]
[353491953,1739880661609,-500.0,0.00014684,2]
[353491954,1739880661619,-479.38662948,0.00014684,2]
[353491955,1739880661629,-500.0,0.00014729,2]
[353491956,1739880661640,-500.0,0.0001473,2]
[353491957,1739880661651,-1868.0,0.00014733,2]
[353491958,1739880661662,-500.0,0.00014749,2]
[353491959,1739880661674,-213.86,0.00014758,2]
[353491960,1739880661684,-390.66566053,0.00014767,2]
[353491961,1739880661695,-500.0,0.00014767,2]
[353491962,1739880661706,-500.0,0.00014767,2]
[353491963,1739880661718,-470.30770032,0.00014767,2]
[353491964,1739880661730,-500.0,0.00014767,2]
[353491965,1739880661740,-500.0,0.00014767,2]
[353491966,1739880661751,-500.0,0.00014767,2]
[353491967,1739880661762,-500.0,0.00014767,2]
[353491968,1739880661773,-820.59,0.00014767,2]
[353491969,1739880661784,-500.0,0.00014767,2]
[353491970,1739880661795,-598.34,0.00014767,2]
[353491971,1739880661806,-500.0,0.00014767,2]
[353491972,1739880661816,-500.0,0.00014767,2]
[353491973,1739880661827,-500.0,0.00014767,2]
[353491974,1739880661838,-778.2,0.00014767,2]
[353491975,1739880661849,-500.0,0.00014767,2]
[353491976,1739880661860,-557.95,0.00014767,2]
[353491977,1739880661871,-777.52,0.00014767,2]
[353491978,1739880661881,-535.95,0.00014767,2]
[353491979,1739880661892,-500.0,0.00014767,2]
[353491980,1739880661903,-500.0,0.00014767,2]
[353491981,1739880661914,-500.0,0.00014767,2]
[353491982,1739880661925,-500.0,0.00014767,2]
[353491983,1739880661935,-268.32162873,0.00014767,2]
[353491984,1739880661946,-564.61,0.00014767,2]
[353491985,1739880661956,-500.0,0.00014767,2]
[353491986,1739880661968,-501.08,0.00014767,2]
[353491987,1739880661979,-500.0,0.00014767,2]
[353491988,1739880661990,-747.63,0.00014767,2]
[353491989,1739880662001,-554.01,0.00014767,2]
[353491990,1739880662011,-500.0,0.00014767,2]
[353491991,1739880662022,-187.0408172,0.00014767,2]
[353491992,1739880662032,-500.0,0.00014767,2]
[353491993,1739880662043,-500.0,0.00014767,2]
[353491994,1739880662053,-500.0,0.00014767,2]
[353491995,1739880662063,-500.0,0.00014767,2]
[353491996,1739880662073,-911.47,0.00014767,2]
[353491997,1739880662084,-599.01269679,0.00014767,2]
[353491998,1739880662095,-500.0,0.00014767,2]
[353491999,1739880662106,-1000.58,0.00014767,2]
[353492000,1739880662116,-500.0,0.00014767,2]
[353492001,1739880662127,-500.0,0.00014767,2]
[353492002,1739880662138,-614.2,0.00014767,2]
[353492003,1739880662149,-555.55,0.00014767,2]
[353492004,1739880662159,-500.0,0.00014767,2]
[353492005,1739880662170,-500.0,0.00014767,2]
[353492006,1739880662180,-500.0,0.00014767,2]
[353492007,1739880662190,-500.0,0.00014767,2]
[353492008,1739880662201,-500.0,0.00014767,2]
[353492009,1739880662212,-1678.1,0.00014767,2]
[353492010,1739880662222,-545.79041657,0.00014767,2]
[353492011,1739880662233,-500.0,0.00014767,2]
[353492012,1739880662243,-500.0,0.00014767,2]
[353492013,1739880662253,-500.0,0.00014767,2]
[353492014,1739880662263,-500.0,0.00014767,2]
[353492015,1739880662274,-500.0,0.00014767,2]
[353492016,1739880662285,-500.0,0.00014767,2]
[353492017,1739880662295,-150.0,0.0001478,2]
[353492018,1739880662305,-315.88,0.000148,31]
[353492019,1739880662315,-315.88,0.000148,31]
[353492020,1739880662326,-315.88,0.000148,31]
[353492021,1739880662336,-315.88,0.000148,31]
[353492022,1739880662346,-315.88,0.000148,31]
[353492023,1739880662356,-315.88,0.000148,31]
[353492024,1739880662366,-315.88,0.000148,31]
[353492025,1739880662376,-315.88,0.000148,31]
[353492026,1739880662387,-315.88,0.000148,31]
[353492027,1739880662397,-315.88,0.000148,31]
[353492028,1739880662407,-315.88,0.000148,31]
[353492029,1739880662417,-315.88,0.000148,31]
[353492030,1739880662427,-315.88,0.000148,31]
[353492031,1739880662437,-315.88,0.000148,31]
[353492032,1739880662447,-315.88,0.000148,31]
[353492033,1739880662458,-315.88,0.000148,31]
[353492034,1739880662468,-152.0,0.00014815,3]
[353492035,1739880662479,-933.7944068,0.00014839,2]
[353492036,1739880662490,-2427.4481402,0.00014839,2]
[353492037,1739880662500,-500.0,0.00014849,2]
[353492038,1739880662510,-500.0,0.00014849,2]
[353492039,1739880662521,-500.0,0.00014849,2]
[353492040,1739880662532,-500.0,0.00014849,2]
[353492041,1739880662543,-500.0,0.00014849,2]
[353492042,1739880662554,-332.77364888,0.00014849,2]
[353492043,1739880662564,-820.59,0.00014849,2]
[353492044,1739880662574,-500.0,0.00014849,2]
[353492045,1739880662585,-598.34,0.00014849,2]
[353492046,1739880662595,-500.0,0.00014849,2]
[353492047,1739880662605,-500.0,0.00014849,2]
[353492048,1739880662616,-500.0,0.00014849,2]
[353492049,1739880662626,-778.2,0.00014849,2]
[353492050,1739880662637,-557.95,0.00014849,2]
[353492051,1739880662647,-500.0,0.00014849,2]
[353492052,1739880662657,-777.52,0.00014849,2]
[353492053,1739880662668,-535.95,0.00014849,2]
[353492054,1739880662681,-500.0,0.00014849,2]
[353492055,1739880662691,-483.02433889,0.00014849,2]
[353492056,1739880662702,-500.0,0.00014849,2]
[353492057,1739880662712,-500.0,0.00014849,2]
[353492058,1739880662724,-564.61,0.00014849,2]
[353492059,1739880662734,-370.8165785,0.00014849,2]
[353492060,1739880662744,-501.08,0.00014849,2]
[353492061,1739880662756,-162.56940902,0.00014849,2]
[353492062,1739880662768,-747.63,0.00014849,2]
[353492063,1739880662778,-554.01,0.00014849,2]
[353492064,1739880662788,-500.0,0.00014849,2]
[353492065,1739880662997,-500.0,0.00014849,2]
[353492066,1739880663009,-500.0,0.00014849,2]
[353492067,1739880663019,-500.0,0.00014849,2]
[353492068,1739880663029,-500.0,0.00014849,2]
[353492069,1739880663039,-911.47,0.00014849,2]
[353492070,1739880663049,-500.0,0.00014849,2]
[353492071,1739880663059,-1000.58,0.00014849,2]
[353492072,1739880663069,-500.0,0.00014849,2]
[353492073,1739880663078,-211.97463199,0.00014849,2]
[353492074,1739880663088,-614.2,0.00014849,2]
[353492075,1739880663097,-555.55,0.00014849,2]
[353492076,1739880663107,-500.0,0.00014849,2]
[353492077,1739880663117,-500.0,0.00014849,2]
[353492078,1739880663127,-500.0,0.00014849,2]
[353492079,1739880663137,-500.0,0.00014849,2]
[353492080,1739880663148,-1678.1,0.00014849,2]
[353492081,1739880663158,-585.70129128,0.00014849,2]
[353492082,1739880663167,-462.22368125,0.00014849,2]
[353492083,1739880663177,-500.0,0.00014849,2]
[353492084,1739880663186,-500.0,0.00014849,2]
[353492085,1739880663196,-500.0,0.00014849,2]
[353492086,1739880663206,-198.37432337,0.00014849,2]
[353492087,1739880663215,-1000.0,0.0001486,2]
[353492088,1739880663225,-1868.0,0.00014882,2]
[353492089,1739880663235,-702.97519986,0.00014882,2]
[353492090,1739880663245,-500.0,0.00014886,2]
[353492091,1739880663255,-263275.418694,0.000149,3]
[353492092,1739880663264,-152.38,0.00014904,2]
[353492093,1739880663275,-500.0,0.00014931,2]
[353492094,1739880663285,-508.35386027,0.00014931,2]
[353492095,1739880663295,-200.9563075,0.00014931,2]
[353492096,1739880663304,-500.0,0.00014931,2]
[353492097,1739880663314,-500.0,0.00014931,2]
[353492098,1739880663324,-820.59,0.00014931,2]
[353492099,1739880663334,-500.0,0.00014931,2]
[353492100,1739880663344,-598.34,0.00014931,2]
[353492101,1739880663354,-500.0,0.00014931,2]
[353492102,1739880663363,-583.60110649,0.00014931,2]
[353492103,1739880663373,-377.0497181,0.00014931,2]
[353492104,1739880663382,-778.2,0.00014931,2]
[353492105,1739880663392,-557.95,0.00014931,2]
[353492106,1739880663402,-291.54338907,0.00014931,2]
[353492107,1739880663411,-777.52,0.00014931,2]
[353492108,1739880663421,-535.95,0.00014931,2]
[353492109,1739880663430,-500.0,0.00014931,2]
[353492110,1739880663440,-500.0,0.00014931,2]
[353492111,1739880663449,-500.0,0.00014931,2]
[353492112,1739880663459,-564.61,0.00014931,2]
[353492113,1739880663468,-501.08,0.00014931,2]
[353492114,1739880663479,-747.63,0.00014931,2]
[353492115,1739880663488,-554.01,0.00014931,2]
[353492116,1739880663497,-500.0,0.00014931,2]
[353492117,1739880663507,-265.81417837,0.00014931,2]
[353492118,1739880663516,-500.0,0.00014931,2]
[353492119,1739880663526,-500.0,0.00014931,2]
[353492120,1739880663535,-500.0,0.00014931,2]
[353492121,1739880663544,-911.47,0.00014931,2]
[353492122,1739880663553,-500.0,0.00014931,2]
[353492123,1739880663563,-1000.58,0.00014931,2]
[353492124,1739880663572,-500.0,0.00014931,2]
[353492125,1739880663581,-614.2,0.00014931,2]
[353492126,1739880663591,-555.55,0.00014931,2]
[353492127,1739880663600,-500.0,0.00014931,2]
[353492128,1739880663610,-500.0,0.00014931,2]
[353492129,1739880663619,-500.0,0.00014931,2]
[353492130,1739880663628,-500.0,0.00014931,2]
[353492131,1739880663638,-1678.1,0.00014931,2]
[353492132,1739880663648,-500.0,0.00014931,2]
[353492133,1739880663658,-500.0,0.00014931,2]
[353492134,1739880663669,-500.0,0.00014931,2]
[353492135,1739880663681,-438.77,0.00014959,2]
[353492136,1739880663691,-19094.06873071,0.0001499,3]
[353492137,1739880663700,-200.86,0.00014999,2]
[353492138,1739880663711,-900.0,0.00015,16]
[353492139,1739880663720,-9550.0,0.00015,2]
[353492140,1739880663731,-4000.0,0.00015,2]
[353492141,1739880663741,-500.0,0.00015013,2]
[353492142,1739880663752,-500.0,0.00015013,2]
[353492143,1739880663764,-500.0,0.00015013,2]
[353492144,1739880663775,-820.59,0.00015013,2]
[353492145,1739880663785,-317.75583078,0.00015013,2]
[353492146,1739880663795,-598.34,0.00015013,2]
[353492147,1739880663805,-500.0,0.00015013,2]
[353492148,1739880663815,-778.2,0.00015013,2]
[353492149,1739880663825,-557.95,0.00015013,2]
[353492150,1739880663834,-777.52,0.00015013,2]
[353492151,1739880663843,-535.95,0.00015013,2]
[353492152,1739880663853,-478.39923679,0.00015013,2]
[353492153,1739880663862,-500.0,0.00015013,2]
[353492154,1739880663871,-500.0,0.00015013,2]
[353492155,1739880663881,-564.61,0.00015013,2]
[353492156,1739880663890,-501.08,0.00015013,2]
[353492157,1739880663900,-747.63,0.00015013,2]
[353492158,1739880663909,-554.01,0.00015013,2]
[353492159,1739880663919,-500.0,0.00015013,2]
[353492160,1739880663928,-500.0,0.00015013,2]
[353492161,1739880663938,-500.0,0.00015013,2]
[353492162,1739880663947,-423.3230945,0.00015013,2]
[353492163,1739880663956,-911.47,0.00015013,2]
[353492164,1739880663966,-500.0,0.00015013,2]
[353492165,1739880663975,-1000.58,0.00015013,2]
[353492166,1739880663984,-500.0,0.00015013,2]
[353492167,1739880663994,-614.2,0.00015013,2]
[353492168,1739880664003,-555.55,0.00015013,2]
[353492169,1739880664012,-500.0,0.00015013,2]
[353492170,1739880664021,-500.0,0.00015013,2]
[353492171,1739880664031,-500.0,0.00015013,2]
[353492172,1739880664040,-1678.1,0.00015013,2]
[353492173,1739880664050,-500.0,0.00015013,2]